bitfinex/quotes_BTCUSD_20250408
["timestamp","ask_amount","ask_price","bid_price","bid_amount"]
[1744120687869,7.2e-07,79946.0,79939.0,0.262699]
[1744120688127,9.2e-07,79947.0,79946.0,0.02704885]
[1744120688338,0.0004178,79947.0,79946.0,0.15830749]
[1744120688559,0.0004178,79947.0,79946.0,0.13876664]
[1744120688778,0.0004178,79947.0,79946.0,0.31984664]
[1744120689001,0.0004178,79947.0,79946.0,0.31976664]
[1744120689205,0.0004178,79947.0,79946.0,0.56993464]
[1744120689366,0.0004178,79947.0,79946.0,0.181]
[1744120689565,0.0004178,79947.0,79946.0,0.193508]
[1744120689767,0.0014178,79947.0,79946.0,0.194]
[1744120689993,0.2515828,79947.0,79946.0,0.194]
[1744120690352,0.2515828,79947.0,79946.0,0.187]
[1744120690555,0.2515828,79947.0,79946.0,0.188]
[1744120690670,0.0014178,79947.0,79946.0,0.188]
[1744120690882,0.0014178,79947.0,79946.0,0.32926769]
[1744120691098,0.0004178,79947.0,79946.0,0.32076664]
[1744120691503,0.0004178,79947.0,79946.0,0.182]
[1744120691702,0.0129258,79947.0,79946.0,0.182]
[1744120691946,0.0129258,79947.0,79946.0,0.181]
[1744120692091,0.0004178,79947.0,79946.0,0.18592]
[1744120692292,0.0004178,79947.0,79946.0,0.57735629]
[1744120692574,0.0004178,79947.0,79946.0,0.57485464]
[1744120692803,0.0004178,79947.0,79946.0,0.18092]
[1744120692980,0.0004178,79947.0,79946.0,0.32418793]
[1744120693207,0.0004178,79947.0,79946.0,0.32168664]
[1744120693753,0.0004178,79947.0,79946.0,0.31968664]
[1744120694989,0.0004178,79947.0,79946.0,0.73708664]
[1744120695218,8e-07,79947.0,79946.0,0.75162749]
[1744120695421,8e-07,79947.0,79946.0,0.74862749]
[1744120695627,8e-07,79947.0,79946.0,0.75762749]
[1744120695984,8e-07,79947.0,79946.0,0.75362749]
[1744120696193,8e-07,79947.0,79946.0,0.75762749]
[1744120696194,0.0010008,79947.0,79946.0,0.75762749]
[1744120696821,0.0010008,79947.0,79946.0,0.76662749]
[1744120697710,1e-07,79955.0,79954.0,0.41265]
[1744120697989,4e-07,79956.0,79955.0,0.02704785]
[1744120698207,0.00012539,79956.0,79955.0,0.56770649]
[1744120698898,0.00012539,79956.0,79955.0,0.90770649]
[1744120699608,0.00012539,79956.0,79955.0,0.91170649]
[1744120699836,0.00012539,79956.0,79955.0,0.91370649]
[1744120700062,0.00012539,79956.0,79955.0,0.55916564]
[1744120700296,0.00012539,79956.0,79955.0,0.74004564]
[1744120701084,0.00012539,79956.0,79955.0,0.74504564]
[1744120701324,0.00012539,79956.0,79955.0,0.55816564]
[1744120701559,0.00012539,79956.0,79955.0,0.6022]
[1744120701797,0.01263139,79956.0,79955.0,0.009]
[1744120702068,0.250158,79950.0,79946.0,0.250168]
[1744120702322,0.01263139,79956.0,79926.0,0.012511]
[1744120702323,0.012509,79939.0,79926.0,0.012511]
[1744120702566,0.012509,79939.0,79904.0,0.99092]
[1744120702567,0.34,79948.0,79939.0,0.25019]
[1744120702815,0.262697,79940.0,79933.0,0.01251]
[1744120703064,0.250195,79938.0,79935.0,0.250202]
[1744120703339,0.25019,79940.0,79935.0,0.262711]
[1744120703570,0.012508,79945.0,79938.0,0.012509]
[1744120703814,0.250202,79936.0,79934.0,0.1808]
[1744120704051,0.250191,79939.0,79935.0,0.250202]
[1744120704307,0.59015,79953.0,79942.0,0.012509]
[1744120704547,0.00012539,79956.0,79949.0,0.012507]
[1744120704789,0.00012539,79956.0,79951.0,0.250152]
[1744120705047,0.00012539,79956.0,79950.0,0.250156]
[1744120705048,0.00012539,79956.0,79955.0,0.012507]
[1744120705302,0.00012539,79956.0,79955.0,0.31956564]
[1744120705812,0.00412539,79956.0,79955.0,0.193307]
[1744120706046,0.00112539,79956.0,79955.0,0.193307]
[1744120706926,3.9e-07,79959.0,79958.0,0.262637]
[1744120707204,3.9e-07,79959.0,79958.0,0.40343649]
[1744120707669,3.9e-07,79959.0,79958.0,0.81783649]
[1744120707939,3.9e-07,79959.0,79958.0,0.80329564]
[1744120708168,3.9e-07,79959.0,79958.0,0.99096566]
[1744120708414,3.9e-07,79959.0,79958.0,0.99596566]
[1744120709141,3.9e-07,79959.0,79958.0,0.99696566]
[1744120709400,0.00100039,79959.0,79958.0,1.00496566]
[1744120709895,0.00100039,79959.0,79958.0,0.99042481]
[1744120710124,0.00100039,79959.0,79958.0,0.84042481]
[1744120710633,0.00100039,79959.0,79958.0,0.83442481]
[1744120710880,0.00100039,79959.0,79958.0,0.84342481]
[1744120712351,0.00100039,79959.0,79958.0,1.02422481]
[1744120713261,0.00100039,79959.0,79958.0,0.63532917]
[1744120714012,0.00100039,79959.0,79958.0,0.62732917]
[1744120714013,0.01250639,79959.0,79958.0,0.62732917]
[1744120714256,0.01250639,79959.0,79958.0,0.62332917]
[1744120714500,0.01250639,79959.0,79958.0,0.21492917]
[1744120714740,0.26263439,79959.0,79958.0,0.21492917]
[1744120714985,0.26263439,79959.0,79958.0,0.03412917]
[1744120715219,0.26263439,79959.0,79958.0,0.02812917]
[1744120715424,0.26263439,79959.0,79958.0,0.02312917]
[1744120715662,0.262653,79953.0,79952.0,0.4144]
[1744120716727,0.00200039,79959.0,79958.0,0.262637]
[1744120717146,3.9e-07,79959.0,79958.0,0.262637]
[1744120717368,0.00100039,79959.0,79958.0,0.262637]
[1744120717571,0.00100039,79959.0,79958.0,0.28597209]
[1744120717988,0.00300039,79959.0,79958.0,0.28597209]
[1744120718158,0.00100039,79959.0,79958.0,0.28597209]
[1744120718366,3.9e-07,79959.0,79958.0,0.28597209]
[1744120718579,3.9e-07,79959.0,79958.0,0.02733509]
[1744120718580,0.01250639,79959.0,79958.0,0.02733509]
[1744120718776,0.01250639,79959.0,79958.0,0.02633509]
[1744120718777,0.26263439,79959.0,79958.0,0.02633509]
[1744120719103,3.9e-07,79959.0,79958.0,0.02333509]
[1744120719730,3.9e-07,79959.0,79958.0,0.28597209]
[1744120720071,3.9e-07,79959.0,79958.0,0.28797209]
[1744120720491,3.9e-07,79959.0,79958.0,0.28897209]
[1744120721094,3.9e-07,79959.0,79958.0,0.32782493]
[1744120721315,3.9e-07,79959.0,79958.0,0.45608357]
[1744120722030,3.9e-07,79959.0,79958.0,0.87048357]
[1744120722239,3.9e-07,79959.0,79958.0,0.88502442]
[1744120723243,3.9e-07,79959.0,79958.0,0.88302442]
[1744120723460,3.9e-07,79959.0,79958.0,0.88702442]
[1744120723633,3.9e-07,79959.0,79958.0,0.88402442]
[1744120723831,3.9e-07,79959.0,79958.0,0.88602442]
[1744120724029,0.00100039,79959.0,79958.0,0.89402442]
[1744120724593,0.00100039,79959.0,79958.0,0.88802442]
[1744120724832,0.00100039,79959.0,79958.0,0.89702442]
[1744120726183,3.9e-07,79959.0,79958.0,0.89702442]
[1744120728219,3.9e-07,79959.0,79958.0,1.88762442]
[1744120728967,3.9e-07,79959.0,79958.0,2.23262442]
[1744120729379,0.0001685,79979.0,79978.0,0.262571]
[1744120729584,0.0001685,79979.0,79978.0,0.60844248]
[1744120729782,0.0001685,79979.0,79978.0,0.63177757]
[1744120729984,9e-07,79989.0,79988.0,0.250037]
[1744120730199,0.00012589,79989.0,79988.0,0.4301494]
[1744120730398,0.00012589,79989.0,79988.0,0.45098457]
[1744120730604,0.00012589,79989.0,79988.0,0.02333509]
[1744120730605,0.26266089,79989.0,79988.0,0.02333509]
[1744120731092,0.26266089,79989.0,79981.0,0.250058]
[1744120731093,0.012502,79986.0,79981.0,0.250058]
[1744120731337,0.250059,79981.0,79979.0,0.250065]
[1744120731558,0.250059,79981.0,79969.0,0.262598]
[1744120731559,0.250065,79979.0,79969.0,0.262598]
[1744120731777,0.262574,79978.0,79969.0,0.012504]
[1744120732013,0.262578,79976.0,79975.0,0.0233192]
[1744120732220,0.250103,79967.0,79966.0,0.0233192]
[1744120732457,0.262608,79967.0,79966.0,0.0233192]
[1744120733161,0.262608,79967.0,79960.0,0.250121]
[1744120733162,0.250116,79963.0,79960.0,0.250121]
[1744120733373,0.250116,79963.0,79959.0,0.0233192]
[1744120733580,0.250125,79960.0,79959.0,0.0233192]
[1744120733752,0.250122,79961.0,79958.0,0.9906]
[1744120733974,0.262611,79967.0,79959.0,0.012506]
[1744120734179,0.65675569,80000.0,79984.0,0.25005]
[1744120734351,0.65675569,80000.0,79977.0,0.250071]
[1744120734352,0.34,79980.0,79977.0,0.250071]
[1744120734551,0.012503,79977.0,79972.0,0.250086]
[1744120734759,0.012504,79973.0,79965.0,0.012505]
[1744120734962,0.250094,79970.0,79966.0,0.250106]
[1744120735164,0.012504,79971.0,79966.0,0.250106]
[1744120735367,0.012503,79976.0,79970.0,0.012504]
[1744120735587,0.012503,79977.0,79970.0,0.262597]
[1744120735805,0.262584,79975.0,79968.0,0.012505]
[1744120735964,0.012504,79973.0,79969.0,0.02336473]
[1744120736165,0.250091,79971.0,79969.0,0.02336473]
[1744120736775,0.250091,79971.0,79968.0,0.250099]
[1744120736972,0.012506,79961.0,79955.0,0.262645]
[1744120737172,0.012505,79968.0,79964.0,0.250112]
[1744120737375,0.250106,79966.0,79963.0,0.250115]
[1744120737749,0.250087,79972.0,79966.0,0.002]
[1744120737925,0.001,79971.0,79966.0,0.27347496]
[1744120738155,0.001,79971.0,79970.0,0.250093]
[1744120738394,0.001,79971.0,79970.0,0.262597]
[1744120738999,0.01229873,79975.0,79973.0,0.250084]
[1744120739178,0.01229873,79975.0,79974.0,0.250081]
[1744120739356,0.34,79983.0,79982.0,0.250056]
[1744120739563,0.34,79983.0,79980.0,0.262559]
[1744120739908,0.34,79983.0,79982.0,0.262558]
[1744120740109,0.00012497,79985.0,79984.0,0.262552]
[1744120740492,0.01284823,79985.0,79984.0,0.262552]
[1744120741112,0.00012497,79985.0,79984.0,0.262552]
[1744120741273,0.00012497,79985.0,79984.0,0.28591434]
[1744120741701,0.00212497,79985.0,79984.0,0.28691434]
[1744120741902,0.00012497,79985.0,79984.0,0.28591434]
[1744120742224,0.00112497,79985.0,79984.0,0.41217298]
[1744120742432,0.00112497,79985.0,79984.0,0.02336234]
[1744120742642,0.60367297,79985.0,79984.0,0.02336234]
[1744120742842,0.73093161,79985.0,79984.0,0.02336234]
[1744120743044,0.250075,79976.0,79970.0,0.25009]
[1744120743255,0.25217097,79985.0,79968.0,0.00951594]
[1744120743461,0.00212497,79985.0,79978.0,0.012503]
[1744120743676,0.34,79984.0,79979.0,0.012503]
[1744120743919,0.250096,79969.0,79962.0,0.02336234]
[1744120744126,0.012504,79972.0,79968.0,0.250099]
[1744120744344,0.250092,79971.0,79968.0,0.11203773]
[1744120744564,0.250096,79969.0,79968.0,0.11203773]
[1744120744777,0.262592,79972.0,79968.0,0.11203773]
[1744120744990,0.250065,79979.0,79976.0,0.250073]
[1744120745202,0.012503,79977.0,79973.0,0.250083]
[1744120745412,0.012503,79977.0,79968.0,0.12454273]
[1744120745413,0.25009,79971.0,79968.0,0.11203773]
[1744120745623,0.6026,79969.0,79968.0,0.11203773]
[1744120746248,0.34,79969.0,79968.0,0.11203773]
[1744120746415,0.6026,79969.0,79968.0,0.11203773]
[1744120747224,0.6026,79969.0,79968.0,0.11303773]
[1744120747432,0.6026,79969.0,79968.0,0.001]
[1744120747638,0.34,79969.0,79960.0,0.012506]
[1744120747843,0.002,79979.0,79973.0,0.262587]
[1744120747978,0.250075,79976.0,79973.0,0.250083]
[1744120748176,0.012503,79977.0,79971.0,0.262594]
[1744120748380,0.34,79979.0,79972.0,0.012504]
[1744120748584,0.250068,79978.0,79975.0,0.250077]
[1744120748807,0.34,79979.0,79976.0,0.250074]
[1744120749238,0.00012497,79985.0,79978.0,0.012503]
[1744120749380,0.012502,79983.0,79978.0,0.012503]
[1744120749602,0.012502,79983.0,79979.0,0.250065]
[1744120749796,0.00012497,79985.0,79984.0,0.262552]
[1744120750801,0.00012497,79985.0,79981.0,0.262561]
[1744120751039,0.012503,79978.0,79971.0,0.00946249]
[1744120751244,0.012502,79983.0,79974.0,0.25008]
[1744120751441,0.012502,79983.0,79972.0,0.012504]
[1744120751442,0.250072,79977.0,79972.0,0.012504]
[1744120752037,0.012503,79978.0,79973.0,0.250082]
[1744120752244,0.012503,79977.0,79972.0,0.18064]
[1744120752479,0.250072,79977.0,79973.0,0.250083]
[1744120752679,0.262575,79977.0,79973.0,0.250083]
[1744120753045,0.262575,79977.0,79974.0,0.25008]
[1744120753247,0.250069,79978.0,79975.0,0.250078]
[1744120753391,0.250069,79978.0,79974.0,0.012504]
[1744120753392,0.59005,79984.0,79981.0,0.250058]
[1744120753598,0.250056,79982.0,79974.0,0.014504]
[1744120753800,0.250071,79978.0,79974.0,0.012504]
[1744120754000,0.250072,79977.0,79973.0,0.012504]
[1744120754207,0.250069,79978.0,79975.0,0.250075]
[1744120754605,0.012503,79980.0,79974.0,0.012504]
[1744120754810,0.012503,79980.0,79975.0,0.012503]
[1744120755091,0.012503,79979.0,79974.0,0.014504]
[1744120755288,0.250072,79977.0,79974.0,0.264582]
[1744120755717,0.012503,79977.0,79974.0,0.002]
[1744120755982,0.262581,79975.0,79974.0,0.002]
[1744120756218,0.262588,79973.0,79972.0,0.18064]
[1744120756743,0.001,79978.0,79973.0,0.012504]
[1744120756979,0.001,79978.0,79960.0,0.18064]
[1744120756980,0.262627,79961.0,79960.0,0.18064]
[1744120757293,0.012504,79970.0,79960.0,0.18064]
[1744120757294,0.250083,79974.0,79966.0,0.012505]
[1744120757494,0.012505,79964.0,79960.0,0.18064]
[1744120757745,0.250121,79961.0,79960.0,0.18064]
[1744120757994,0.262627,79961.0,79960.0,0.18064]
[1744120758243,0.012506,79957.0,79953.0,0.250145]
[1744120758537,0.250131,79958.0,79953.0,0.250144]
[1744120758755,0.34,79965.0,79962.0,0.250118]
[1744120759005,0.34,79974.0,79968.0,0.262605]
[1744120759249,0.012504,79972.0,79967.0,0.012505]
[1744120759477,0.012505,79968.0,79962.0,0.012505]
[1744120759721,0.012505,79968.0,79963.0,0.250114]
[1744120759722,0.250103,79967.0,79963.0,0.250114]
[1744120759961,0.34,79969.0,79963.0,0.262619]
[1744120760202,0.250113,79964.0,79960.0,0.250122]
[1744120760448,0.250113,79964.0,79900.0,0.5]
[1744120760449,0.012503,79975.0,79968.0,0.012505]
[1744120760681,0.250097,79969.0,79965.0,0.250107]
[1744120760917,0.012504,79970.0,79965.0,0.250109]
[1744120761200,0.250106,79967.0,79962.0,0.250118]
[1744120761399,0.250099,79969.0,79962.0,0.250118]
[1744120761619,0.250089,79972.0,79964.0,0.012505]
[1744120761822,0.00012497,79980.0,79979.0,0.250065]
[1744120762036,0.00012497,79980.0,79979.0,0.262568]
[1744120763418,0.00012497,79980.0,79979.0,0.28594166]
[1744120763712,0.00012497,79980.0,79979.0,0.42153137]
[1744120764760,0.00012497,79980.0,79979.0,0.42453137]
[1744120765737,0.00012497,79980.0,79979.0,0.16696337]
[1744120766471,0.00012497,79980.0,79979.0,0.17946637]
[1744120766925,0.00012497,79980.0,79979.0,0.17146637]
[1744120767157,0.00012497,79980.0,79979.0,0.16296337]
[1744120767392,0.00012497,79980.0,79979.0,0.03870473]
[1744120767621,0.00012497,79980.0,79979.0,0.03470473]
[1744120767851,0.00012497,79980.0,79979.0,0.01433107]
[1744120768096,0.00012497,79980.0,79979.0,0.00933107]
[1744120768532,0.250071,79978.0,79974.0,0.02337366]
[1744120768745,0.00012497,79980.0,79974.0,0.02337366]
[1744120768949,0.00012497,79980.0,79973.0,0.02337366]
[1744120769179,0.00012497,79980.0,79979.0,0.005]
[1744120769621,0.00012497,79980.0,79973.0,0.02337366]
[1744120769848,0.00012497,79980.0,79974.0,0.003]
[1744120770091,0.00212497,79980.0,79974.0,0.003]
[1744120770324,0.00212497,79980.0,79974.0,0.00937848]
[1744120770563,0.00212497,79980.0,79973.0,0.02337366]
[1744120770795,0.00012497,79980.0,79973.0,0.02337366]
[1744120771031,0.00012497,79980.0,79974.0,0.02337366]
[1744120771523,0.00012497,79980.0,79973.0,0.02337366]
[1744120771759,0.00012497,79980.0,79973.0,0.02437366]
[1744120772213,0.00012497,79980.0,79978.0,0.250067]
[1744120772417,0.00012497,79980.0,79975.0,0.250077]
[1744120772642,0.00012497,79980.0,79974.0,0.02337366]
[1744120772850,0.262574,79977.0,79976.0,0.18044]
[1744120773055,0.262574,79977.0,79973.0,0.001]
[1744120773056,0.262585,79974.0,79973.0,0.004]
[1744120773428,0.262585,79974.0,79973.0,0.003]
[1744120773635,0.262617,79965.0,79961.0,0.00936441]
[1744120773857,0.262637,79958.0,79957.0,0.18044]
[1744120774038,0.262643,79956.0,79955.0,0.11203773]
[1744120774241,0.34,79964.0,79955.0,0.11203773]
[1744120774657,0.250116,79963.0,79955.0,0.11203773]
[1744120774884,0.012505,79966.0,79955.0,0.11203773]
[1744120775119,0.012504,79969.0,79955.0,0.11203773]
[1744120775335,0.250098,79969.0,79958.0,0.012506]
[1744120775560,0.250102,79968.0,79957.0,0.250131]
[1744120775781,0.250103,79967.0,79955.0,0.37468373]
[1744120776236,0.12625864,79980.0,79972.0,0.250086]
[1744120776524,0.34,79975.0,79965.0,0.250108]
[1744120776756,0.34,79975.0,79962.0,0.443103]
[1744120776983,0.003,79964.0,79962.0,0.18048]
[1744120777216,0.012505,79966.0,79962.0,0.18048]
[1744120777438,0.250103,79968.0,79962.0,0.18048]
[1744120778055,0.250087,79972.0,79962.0,0.18448]
[1744120778285,0.34,79975.0,79962.0,0.31073864]
[1744120778425,0.250094,79970.0,79962.0,0.004]
[1744120778625,0.012504,79971.0,79962.0,0.004]
[1744120778828,0.250103,79967.0,79962.0,0.004]
[1744120779188,0.250128,79959.0,79952.0,0.02336595]
[1744120779344,0.250128,79959.0,79955.0,0.02336595]
[1744120779714,0.250134,79957.0,79955.0,0.02336595]
[1744120779913,0.012506,79957.0,79948.0,0.02336595]
[1744120780112,0.262642,79957.0,79948.0,0.02336595]
[1744120780228,0.262637,79958.0,79952.0,0.005]
[1744120780429,0.262637,79958.0,79952.0,0.007]
[1744120780629,0.262637,79958.0,79952.0,0.002]
[1744120780825,0.250137,79956.0,79952.0,0.002]
[1744120781036,0.262653,79953.0,79952.0,0.002]
[1744120781286,0.262666,79949.0,79948.0,0.007]
[1744120781700,0.262666,79949.0,79948.0,0.011]
[1744120782083,0.262666,79949.0,79948.0,0.01112499]
[1744120782309,0.262666,79949.0,79948.0,0.00412499]
[1744120783216,0.72892464,79949.0,79948.0,0.00012499]
[1744120783641,0.602683,79944.0,79943.0,0.0003364]
[1744120783818,0.72894164,79944.0,79943.0,0.0003364]
[1744120785922,0.72994164,79944.0,79943.0,0.0003364]
[1744120786513,0.72994164,79944.0,79943.0,0.0013364]
[1744120786514,0.73294164,79944.0,79943.0,0.0013364]
[1744120786728,0.344,79944.0,79943.0,0.0013364]
[1744120786929,0.606683,79944.0,79943.0,0.0013364]
[1744120787136,0.266683,79944.0,79943.0,0.0013364]
[1744120787510,0.606683,79944.0,79943.0,0.0013364]
[1744120787719,0.603683,79944.0,79943.0,0.0003364]
[1744120787916,0.606683,79944.0,79943.0,0.0003364]
[1744120788519,0.73294164,79944.0,79943.0,0.0003364]
[1744120788727,0.73194164,79944.0,79943.0,0.0003364]
[1744120789162,0.71636714,79944.0,79943.0,0.0003364]
[1744120789701,0.72887514,79944.0,79943.0,0.0003364]
[1744120791272,0.603683,79944.0,79943.0,0.0003364]
[1744120791740,0.606683,79944.0,79943.0,0.0013364]
[1744120791939,0.605683,79944.0,79943.0,0.0013364]
[1744120792350,0.609683,79944.0,79943.0,0.0013364]
[1744120792783,0.602683,79944.0,79943.0,0.0003364]
[1744120793230,0.73694164,79944.0,79943.0,0.0003364]
[1744120793844,0.83104164,79944.0,79943.0,0.0003364]
[1744120794404,0.82604164,79944.0,79943.0,0.0003364]
[1744120794605,0.343,79944.0,79943.0,0.0003364]
[1744120794808,0.605683,79944.0,79943.0,0.0003364]
[1744120795009,0.602683,79944.0,79943.0,0.0003364]
[1744120795214,0.615683,79944.0,79943.0,0.0013364]
[1744120795834,0.611683,79944.0,79943.0,0.0013364]
[1744120796093,0.617683,79944.0,79943.0,0.0013364]
[1744120796269,0.74394164,79944.0,79943.0,0.0013364]
[1744120796432,0.73494164,79944.0,79943.0,0.0003364]
[1744120796844,0.74294164,79944.0,79943.0,0.0013364]
[1744120797867,0.616683,79944.0,79943.0,0.0013364]
[1744120798275,0.74294164,79944.0,79943.0,4e-07]
[1744120798483,0.602739,79927.0,79926.0,0.0003366]
[1744120798772,0.72899764,79927.0,79926.0,0.0003366]
[1744120799698,0.73299764,79927.0,79926.0,0.0003366]
[1744120799922,0.73799764,79927.0,79926.0,0.0003366]
[1744120800159,0.7732609,79927.0,79926.0,0.0003366]
[1744120800396,0.012513,79915.0,79914.0,6e-07]
[1744120800623,0.012513,79915.0,79900.0,1.0]
[1744120800624,0.13877164,79915.0,79900.0,1.0]
[1744120800856,0.250265,79916.0,79900.0,1.0]
[1744120800857,0.030511,79927.0,79914.0,0.00041688]
[1744120801070,0.030511,79927.0,79926.0,0.012511]
[1744120801071,0.014,79927.0,79926.0,0.012511]
[1744120801282,0.014,79927.0,79926.0,0.18286188]
[1744120801503,0.01252005,79956.0,79945.0,0.012508]
[1744120801718,0.01252005,79956.0,79955.0,0.012507]
[1744120801973,0.01252005,79956.0,79949.0,0.012507]
[1744120801974,0.01262279,79960.0,79935.0,0.99116]
[1744120802198,0.250111,79965.0,79955.0,0.12625864]
[1744120802410,0.262647,79955.0,79954.0,0.02329302]
[1744120802618,0.262647,79955.0,79943.0,0.18036]
[1744120802619,0.262661,79951.0,79943.0,0.18036]
[1744120802838,0.250124,79961.0,79951.0,0.012507]
[1744120803063,0.012506,79956.0,79944.0,0.12625864]
[1744120803271,0.012507,79954.0,79944.0,0.12625864]
[1744120803478,0.012507,79953.0,79943.0,0.18036]
[1744120803693,0.250175,79944.0,79943.0,0.18036]
[1744120803915,0.352508,79943.0,79942.0,0.003]
[1744120804139,0.262788,79912.0,79911.0,0.0003366]
[1744120804805,0.72904664,79912.0,79911.0,6e-07]
[1744120805020,0.352515,79901.0,79900.0,0.07693378]
[1744120805229,0.352515,79901.0,79883.0,4e-07]
[1744120805230,0.602881,79884.0,79883.0,4e-07]
[1744120805657,0.72913964,79884.0,79883.0,4e-07]
[1744120805875,0.602896,79879.0,79878.0,2e-07]
[1744120806088,0.590425,79864.0,79863.0,6e-07]
[1744120806375,0.590425,79864.0,79846.0,0.0003366]
[1744120806376,0.603002,79847.0,79846.0,0.0003366]
[1744120806624,0.603002,79847.0,79824.0,0.012527]
[1744120806625,0.012528,79818.0,79799.0,0.0677]
[1744120806862,0.34,79811.0,79799.0,0.02]
[1744120807093,0.34,79800.0,79799.0,0.02]
[1744120807559,0.41518007,79809.0,79799.0,0.02041688]
[1744120807560,0.01253,79807.0,79799.0,0.02041688]
[1744120807811,0.012531,79800.0,79799.0,0.02041688]
[1744120808047,0.01253,79806.0,79799.0,0.02041688]
[1744120808048,0.34,79807.0,79799.0,0.02041688]
[1744120808295,0.012529,79814.0,79800.0,0.250624]
[1744120808502,0.34,79819.0,79803.0,0.01253]
[1744120808752,0.34,79838.0,79825.0,0.012527]
[1744120808991,0.25055,79825.0,79813.0,0.250584]
[1744120809228,0.34,79832.0,79819.0,0.263092]
[1744120809466,0.012523,79851.0,79833.0,0.012526]
[1744120809696,0.012524,79846.0,79827.0,0.193007]
[1744120809928,0.65771865,79850.0,79836.0,0.012525]
[1744120810157,0.262978,79855.0,79837.0,0.012525]
[1744120810392,0.012525,79837.0,79827.0,0.18048]
[1744120810650,0.012526,79828.0,79827.0,0.18048]
[1744120810891,0.263056,79831.0,79827.0,0.18048]
[1744120811100,0.34,79834.0,79827.0,0.18048]
[1744120811307,0.012526,79828.0,79827.0,0.18048]
[1744120811512,0.012526,79828.0,79827.0,0.18789688]
[1744120811714,0.012526,79828.0,79827.0,0.00741688]
[1744120811920,0.012526,79828.0,79827.0,0.00041688]
[1744120812344,0.012526,79828.0,79827.0,0.00741688]
[1744120812345,0.352526,79828.0,79827.0,0.00741688]
[1744120812749,0.47878464,79828.0,79827.0,0.00041688]
[1744120813171,0.341,79828.0,79827.0,0.00841688]
[1744120813383,0.001,79828.0,79827.0,0.39774352]
[1744120813825,0.001,79828.0,79827.0,0.39974352]
[1744120814060,0.001,79828.0,79827.0,0.39774352]
[1744120814293,0.001,79828.0,79827.0,0.4052263]
[1744120814665,0.263064,79828.0,79827.0,0.18093688]
[1744120814876,0.267064,79828.0,79827.0,0.00041688]
[1744120815319,0.250519,79835.0,79827.0,0.00041688]
[1744120815477,0.263064,79828.0,79827.0,0.00041688]
[1744120815680,0.264064,79828.0,79827.0,0.00741688]
[1744120815873,0.264064,79828.0,79827.0,0.01141688]
[1744120816074,0.263064,79828.0,79827.0,0.00441688]
[1744120816419,0.263064,79828.0,79827.0,0.00741688]
[1744120816631,0.72932264,79828.0,79827.0,8.8e-07]
[1744120817168,0.72932264,79828.0,79813.0,0.012529]
[1744120817169,0.263064,79828.0,79813.0,0.012529]
[1744120817369,0.263068,79827.0,79816.0,0.012528]
[1744120817592,0.250548,79825.0,79817.0,0.012528]
[1744120817788,0.012527,79826.0,79815.0,0.012528]
[1744120817993,0.002,79828.0,79825.0,0.250545]
[1744120818267,0.012529,79811.0,79800.0,1.004251]
[1744120818398,0.012529,79814.0,79805.0,0.263138]
[1744120818596,0.34,79824.0,79811.0,0.012529]
[1744120818797,0.012524,79845.0,79827.0,0.012527]
[1744120818996,0.014526,79828.0,79827.0,0.18056]
[1744120819203,0.012525,79837.0,79827.0,0.18056]
[1744120819427,0.001,79828.0,79827.0,0.18056]
[1744120819682,0.001,79828.0,79827.0,0.30681864]
[1744120820022,0.002,79828.0,79827.0,0.30681864]
[1744120820223,0.014526,79828.0,79827.0,0.18056]
[1744120820426,0.250537,79829.0,79827.0,0.18056]
[1744120820698,0.001,79828.0,79827.0,0.18056]
[1744120820924,0.251538,79828.0,79827.0,0.30681864]
[1744120821167,0.250538,79828.0,79827.0,0.30681864]
[1744120821393,0.250537,79829.0,79827.0,0.30781864]
[1744120821799,0.012523,79848.0,79830.0,0.012526]
[1744120822002,0.012523,79848.0,79831.0,0.13878464]
[1744120822155,0.012523,79851.0,79831.0,0.13878464]
[1744120822156,0.012523,79851.0,79832.0,0.012526]
[1744120822391,0.012525,79838.0,79833.0,0.12625864]
[1744120822607,0.250519,79835.0,79833.0,0.12625864]
[1744120822751,0.250507,79838.0,79833.0,0.12625864]
[1744120822951,0.012523,79850.0,79834.0,0.01502997]
[1744120823178,0.012521,79863.0,79843.0,0.012524]
[1744120823401,0.250482,79846.0,79844.0,0.12625864]
[1744120823596,0.250482,79846.0,79813.0,0.055]
[1744120823597,0.263006,79846.0,79845.0,0.18044]
[1744120823801,0.012523,79849.0,79816.0,0.21254085]
[1744120823802,0.012523,79849.0,79843.0,0.18044]
[1744120824136,0.18044,79880.0,79843.0,0.18044]
[1744120824137,0.012519,79874.0,79854.0,0.012522]
[1744120824315,0.250419,79868.0,79855.0,0.12625864]
[1744120824451,0.250433,79862.0,79855.0,0.12625864]
[1744120824660,0.250435,79861.0,79855.0,0.12625864]
[1744120825108,0.004,79869.0,79866.0,0.01252]
[1744120825279,0.004,79869.0,79868.0,0.01252]
[1744120825483,0.004,79869.0,79868.0,0.14128231]
[1744120825819,0.004,79869.0,79868.0,0.15582316]
[1744120825966,0.004,79869.0,79868.0,0.15331949]
[1744120826171,0.004,79899.0,79898.0,0.262834]
[1744120826373,0.016515,79899.0,79898.0,0.18044]
[1744120826599,0.012519,79874.0,79866.0,0.00941697]
[1744120826806,0.01252,79868.0,79867.0,0.18044]
[1744120827460,0.012521,79860.0,79849.0,0.1804]
[1744120827663,0.250459,79854.0,79849.0,0.1804]
[1744120827871,0.012523,79849.0,79845.0,0.00012509]
[1744120828018,0.603006,79846.0,79845.0,0.00012509]
[1744120828221,0.012523,79853.0,79845.0,0.00012509]
[1744120828439,0.250482,79846.0,79845.0,0.00012509]
[1744120828650,0.38926464,79846.0,79845.0,9e-08]
[1744120829076,0.38926464,79846.0,79845.0,0.00500009]
[1744120829278,0.38926464,79846.0,79845.0,9e-08]
[1744120829479,0.012526,79832.0,79827.0,0.1804]
[1744120829678,0.250509,79838.0,79830.0,0.012526]
[1744120829889,0.263064,79828.0,79827.0,0.18081737]
[1744120830455,0.012524,79846.0,79839.0,0.250502]
[1744120830666,0.012524,79841.0,79827.0,0.30707601]
[1744120830869,0.012525,79836.0,79827.0,0.18081737]